fUST/lending_fUST_20241009
["ID","MTS","AMOUNT","RATE_DAILY","PERIOD"]
[340068518,1728459058266,-153.0,0.00053644,30]
[340068519,1728459058277,-500.0,0.00053698,2]
[340068520,1728459058287,-153.0,0.00053836,30]
[340068521,1728459058297,-153.0,0.00053836,30]
[340068522,1728459058307,-153.0,0.00053836,30]
[340068523,1728459058318,-2000.0,0.00054,54]
[340068524,1728459058328,-1000.0,0.00054,120]
[340068525,1728459058339,-273.23262846,0.00054,120]
[340068526,1728459058349,-5000.0,0.00054103,5]
[340068527,1728459058359,-504.0085086,0.00054246,2]
[340068528,1728459058369,-154.537776,0.00054247,30]
[340068529,1728459058379,-152.0,0.00054294,90]
[340068530,1728459058388,-400.0,0.00054376,2]
[340068531,1728459058398,-245.093519,0.00054426,30]
[340068532,1728459058408,-208.746604,0.00054426,30]
[340068533,1728459058419,-179.773568,0.00054426,30]
[340068534,1728459058431,-526.0,0.000545,120]
[340068535,1728459058442,-1528.16945868,0.00054618,2]
[340068536,1728459058453,-289.0,0.00054658,120]
[340068537,1728459058464,-173.69295415,0.00054794,120]
[340068538,1728459058473,-500.0,0.00054794,120]
[340068539,1728459058483,-500.0,0.00054794,120]
[340068540,1728459058493,-500.0,0.00054794,120]
[340068541,1728459058503,-500.0,0.00054794,120]
[340068542,1728459058513,-500.0,0.00054794,120]
[340068543,1728459058522,-500.0,0.00054794,120]
[340068544,1728459058533,-500.0,0.00054794,90]
[340068545,1728459058543,-500.0,0.00054794,120]
[340068546,1728459058554,-463.84729872,0.00054794,120]
[340068547,1728459058571,-500.0,0.00054794,120]
[340068548,1728459058581,-500.0,0.00054794,120]
[340068549,1728459058590,-500.53242165,0.00054794,120]
[340068550,1728459058600,-500.0,0.00054794,120]
[340068551,1728459058609,-500.0,0.00054794,120]
[340068552,1728459058619,-500.0,0.00054794,120]
[340068553,1728459058629,-501.25888296,0.00054794,120]
[340068554,1728459058638,-502.4311383,0.00054794,120]
[340068555,1728459058648,-503.62827633,0.00054794,120]
[340068556,1728459058659,-500.0,0.00054794,120]
[340068557,1728459058668,-500.0,0.00054794,120]
[340068558,1728459058677,-216.86490041,0.00054794,120]
[340068559,1728459058688,-500.0,0.00054794,120]
[340068560,1728459058698,-602.45870151,0.00054794,120]
[340068561,1728459058707,-500.0,0.00054794,120]
[340068562,1728459058717,-677.71,0.00054794,120]
[340068563,1728459058726,-500.0,0.00054794,120]
[340068564,1728459058736,-502.25325539,0.00054794,120]
[340068565,1728459058745,-500.0,0.00054794,120]
[340068566,1728459058755,-501.63072239,0.00054794,120]
[340068567,1728459058765,-500.0,0.00054794,120]
[340068568,1728459058775,-500.0,0.00054794,120]
[340068569,1728459058785,-512.91311065,0.00054794,120]
[340068570,1728459058795,-500.0,0.00054794,120]
[340068571,1728459058805,-523.70774388,0.00054794,120]
[340068572,1728459058814,-500.0,0.00054794,120]
[340068573,1728459058823,-500.0,0.00054794,120]
[340068574,1728459058833,-501.90164895,0.00054794,120]
[340068575,1728459058843,-500.0,0.00054794,120]
[340068576,1728459058853,-500.0,0.00054794,120]
[340068577,1728459058863,-500.0,0.00054794,120]
[340068578,1728459058873,-500.0,0.00054794,120]
[340068579,1728459058883,-500.0,0.00054794,120]
[340068580,1728459058892,-500.0,0.00054794,120]
[340068581,1728459058902,-500.0,0.00054794,120]
[340068582,1728459058912,-502.35842845,0.00054794,120]
[340068583,1728459058923,-500.0,0.00054794,120]
[340068584,1728459058935,-500.0,0.00054794,120]
[340068585,1728459058944,-500.0,0.00054794,120]
[340068586,1728459058955,-154.22614835,0.00054794,120]
[340068587,1728459058965,-500.0,0.00054794,120]
[340068588,1728459058976,-500.0,0.00054794,120]
[340068589,1728459058986,-500.0,0.00054794,120]
[340068590,1728459058996,-500.0,0.00054794,120]
[340068591,1728459059006,-500.0,0.00054794,120]
[340068592,1728459059015,-500.0,0.00054794,120]
[340068593,1728459059027,-500.0,0.00054794,120]
[340068594,1728459059039,-500.0,0.00054794,120]
[340068595,1728459059050,-500.0,0.00054794,120]
[340068596,1728459059061,-500.0,0.00054794,120]
[340068597,1728459059072,-502.44475165,0.00054794,120]
[340068598,1728459059085,-501.49986292,0.00054794,120]
[340068599,1728459059094,-500.0,0.00054794,120]
[340068600,1728459059104,-512.40920865,0.00054794,120]
[340068601,1728459059114,-500.0,0.00054794,120]
[340068602,1728459059125,-500.0,0.00054794,120]
[340068603,1728459059136,-500.0,0.00054794,120]
[340068604,1728459059147,-508.8582088,0.00054794,120]
[340068605,1728459059158,-500.0,0.00054794,120]
[340068606,1728459059167,-500.0,0.00054794,120]
[340068607,1728459059177,-334.81562244,0.00054794,120]
[340068608,1728459059187,-502.19082528,0.00054794,120]
[340068609,1728459059195,-500.0,0.00054794,120]
[340068610,1728459059205,-307.18961047,0.00054794,120]
[340068611,1728459059214,-500.0,0.00054794,120]
[340068612,1728459059224,-500.0,0.00054794,120]
[340068613,1728459059233,-502.3217422,0.00054794,120]
[340068614,1728459059242,-500.0,0.00054794,120]
[340068615,1728459059251,-500.0,0.00054794,120]
[340068616,1728459059260,-514.74958744,0.00054794,120]
[340068617,1728459059269,-500.0,0.00054794,120]
[340068618,1728459059278,-500.0,0.00054794,120]
[340068619,1728459059288,-502.86339758,0.00054794,120]
[340068620,1728459059297,-500.0,0.00054794,120]
[340068621,1728459059307,-500.0,0.00054794,120]
[340068622,1728459059316,-500.0,0.00054794,120]
[340068623,1728459059326,-503.17852685,0.00054794,120]
[340068624,1728459059335,-1318.27,0.00054794,120]
[340068625,1728459059345,-500.0,0.00054794,120]
[340068626,1728459059357,-500.0,0.00054794,120]
[340068627,1728459059366,-500.0,0.00054794,120]
[340068628,1728459059375,-500.0,0.00054794,120]
[340068629,1728459059385,-500.0,0.00054794,120]
[340068630,1728459059394,-500.0,0.00054794,120]
[340068631,1728459059404,-500.0,0.00054794,120]
[340068632,1728459059413,-500.0,0.00054794,120]
[340068633,1728459059423,-500.0,0.00054794,120]
[340068634,1728459059433,-500.0,0.00054794,120]
[340068635,1728459059442,-500.0,0.00054794,120]
[340068636,1728459059452,-200.99096311,0.00054794,120]
[340068637,1728459059461,-501.53938087,0.00054794,120]
[340068638,1728459059474,-500.0,0.00054794,120]
[340068639,1728459059483,-500.0,0.00054794,120]
[340068640,1728459059493,-502.09341721,0.00054794,120]
[340068641,1728459059502,-500.0,0.00054794,120]
[340068642,1728459059511,-507.70125582,0.00054794,120]
[340068643,1728459059520,-500.0,0.00054794,120]
[340068644,1728459059530,-500.0,0.00054794,120]
[340068645,1728459059539,-500.65052945,0.00054794,120]
[340068646,1728459059549,-500.0,0.00054794,120]
[340068647,1728459059560,-500.0,0.00054794,7]
[340068648,1728459059571,-500.0,0.00054794,120]
[340068649,1728459059580,-500.0,0.00054794,120]
[340068650,1728459059590,-500.0,0.00054794,120]
[340068651,1728459059600,-587.32023373,0.00054794,30]
[340068652,1728459059609,-500.0,0.00054794,120]
[340068653,1728459059619,-500.0,0.00054794,120]
[340068654,1728459059628,-339.98019599,0.00054794,120]
[340068655,1728459059638,-504.35106461,0.00054794,120]
[340068656,1728459059647,-500.0,0.00054794,120]
[340068657,1728459059657,-506.57337166,0.00054794,120]
[340068658,1728459059667,-500.0,0.00054794,120]
[340068659,1728459059677,-500.0,0.00054794,120]
[340068660,1728459059686,-194.15980692,0.00054794,120]
[340068661,1728459059696,-500.0,0.00054794,120]
[340068662,1728459059706,-500.0,0.00054794,120]
[340068663,1728459059717,-161.42608834,0.00054794,120]
[340068664,1728459059727,-514.76600082,0.00054794,120]
[340068665,1728459059736,-514.89010162,0.00054794,120]
[340068666,1728459059746,-431.05685264,0.00054794,120]
[340068667,1728459059755,-500.0,0.00054794,120]
[340068668,1728459059766,-500.0,0.00054794,120]
[340068669,1728459059776,-506.92037072,0.00054794,120]
[340068670,1728459059785,-500.0,0.00054794,120]
[340068671,1728459059795,-500.0,0.00054794,120]
[340068672,1728459059804,-500.0,0.00054794,120]
[340068673,1728459059814,-502.07723648,0.00054794,120]
[340068674,1728459059823,-501.66459838,0.00054794,120]
[340068675,1728459059832,-500.0,0.00054794,120]
[340068676,1728459059842,-500.0,0.00054794,120]
[340068677,1728459059851,-559.64258977,0.00054794,120]
[340068678,1728459059860,-500.0,0.00054794,120]
[340068679,1728459059870,-500.0,0.00054794,120]
[340068680,1728459059879,-506.22530386,0.00054794,120]
[340068681,1728459059888,-500.0,0.00054794,120]
[340068682,1728459059897,-500.0,0.00054794,120]
[340068683,1728459059907,-500.0,0.00054794,120]
[340068684,1728459059916,-500.0,0.00054794,120]
[340068685,1728459059926,-501.29405813,0.00054794,2]
[340068686,1728459059935,-500.0,0.00054794,120]
[340068687,1728459059945,-500.0,0.00054794,5]
[340068688,1728459059954,-500.0,0.00054794,5]
[340068689,1728459059965,-500.0,0.00054794,5]
[340068690,1728459059974,-500.0,0.00054794,5]
[340068691,1728459059984,-500.0,0.00054794,5]
[340068692,1728459059994,-500.0,0.00054794,120]
[340068693,1728459060003,-500.0,0.00054794,5]
[340068694,1728459060013,-500.0,0.00054794,5]
[340068695,1728459060023,-500.0,0.00054794,5]
[340068696,1728459060033,-500.0,0.00054794,5]
[340068697,1728459060042,-500.0,0.00054794,5]
[340068698,1728459060052,-500.0,0.00054794,5]
[340068699,1728459060062,-500.0,0.00054794,5]
[340068700,1728459060072,-500.0,0.00054794,5]
[340068701,1728459060081,-500.0,0.00054794,5]
[340068702,1728459060091,-208.68922475,0.00054794,5]
[340068703,1728459060100,-500.0,0.00054794,120]
[340068704,1728459060110,-500.0,0.00054794,120]
[340068705,1728459060119,-500.0,0.00054794,120]
[340068706,1728459060128,-500.0,0.00054794,120]
[340068707,1728459060138,-502.74219184,0.00054794,120]
[340068708,1728459060148,-500.0,0.00054794,120]
[340068709,1728459060158,-503.99066203,0.00054794,120]
[340068710,1728459060167,-500.0,0.00054794,120]
[340068711,1728459060177,-500.0,0.00054794,120]
[340068712,1728459060268,-1667.02,0.00054794,120]
[340068713,1728459060278,-500.0,0.00054794,120]
[340068714,1728459060287,-500.0,0.00054794,120]
[340068715,1728459060296,-505.94507515,0.00054794,120]
[340068716,1728459060306,-501.58004737,0.00054794,120]
[340068717,1728459060317,-520.69623863,0.00054794,120]
[340068718,1728459060327,-500.0,0.00054794,120]
[340068719,1728459060336,-1163.83,0.00054794,120]
[340068720,1728459060346,-502.89222358,0.00054794,120]
[340068721,1728459060355,-500.0,0.00054794,120]
[340068722,1728459060365,-500.0,0.00054794,120]
[340068723,1728459060374,-500.0,0.00054794,120]
[340068724,1728459060383,-500.0,0.00054794,120]
[340068725,1728459060393,-500.0,0.00054794,120]
[340068726,1728459060402,-500.0,0.00054794,120]
[340068727,1728459060411,-508.67140486,0.00054794,120]
[340068728,1728459060422,-500.0,0.00054794,120]
[340068729,1728459060431,-502.42451723,0.00054794,120]
[340068730,1728459060441,-500.0,0.00054794,120]
[340068731,1728459060450,-512.96426569,0.00054794,120]
[340068732,1728459060461,-500.0,0.00054794,120]
[340068733,1728459060470,-500.0,0.00054794,120]
[340068734,1728459060480,-500.0,0.00054794,120]
[340068735,1728459060490,-500.0,0.00054794,120]
[340068736,1728459060499,-515.50782468,0.00054794,120]
[340068737,1728459060510,-500.0,0.00054794,120]
[340068738,1728459060520,-506.69661077,0.00054794,120]
[340068739,1728459060530,-341.45389473,0.00054794,30]
[340068740,1728459060539,-511.16644535,0.00054794,120]
[340068741,1728459060549,-500.0,0.00054794,120]
[340068742,1728459060560,-500.0,0.00054794,120]
[340068743,1728459060570,-500.0,0.00054794,120]
[340068744,1728459060580,-502.86658359,0.00054794,120]
[340068745,1728459060589,-500.0,0.00054794,120]
[340068746,1728459060599,-501.61263917,0.00054794,120]
[340068747,1728459060608,-500.0,0.00054794,120]
[340068748,1728459060618,-509.16942663,0.00054794,120]
[340068749,1728459060628,-500.0,0.00054794,120]
[340068750,1728459060637,-500.0,0.00054794,120]
[340068751,1728459060646,-500.0,0.00054794,120]
[340068752,1728459060655,-500.0,0.00054794,120]
[340068753,1728459060664,-500.0,0.00054794,120]
[340068754,1728459060674,-500.0,0.00054794,120]
[340068755,1728459060684,-500.0,0.00054794,120]
[340068756,1728459060693,-500.0,0.00054794,120]
[340068757,1728459060702,-500.0,0.00054794,120]
[340068758,1728459060712,-159.49759875,0.00054794,120]
[340068759,1728459060721,-500.0,0.00054794,120]
[340068760,1728459060730,-560.8061923,0.00054794,120]
[340068761,1728459060740,-500.0,0.00054794,120]
[340068762,1728459060750,-426.60708065,0.00054794,120]
[340068763,1728459060760,-500.0,0.00054794,120]
[340068764,1728459060769,-500.0,0.00054794,120]
[340068765,1728459060779,-500.0,0.00054794,120]
[340068766,1728459060788,-500.0,0.00054794,120]
[340068767,1728459060797,-500.0,0.00054794,120]
[340068768,1728459060807,-504.70096476,0.00054794,120]
[340068769,1728459060817,-500.0,0.00054794,120]
[340068770,1728459060827,-501.8846365,0.00054794,60]
[340068771,1728459060836,-500.0,0.00054794,120]
[340068772,1728459060846,-504.47173053,0.00054794,120]
[340068773,1728459060855,-629.8700898,0.00054794,120]
[340068774,1728459060865,-500.0,0.00054794,120]
[340068775,1728459060875,-502.68714334,0.00054794,120]
[340068776,1728459060884,-500.0,0.00054794,120]
[340068777,1728459060894,-509.54081999,0.00054794,120]
[340068778,1728459060904,-552.00431111,0.00054794,120]
[340068779,1728459060914,-500.0,0.00054794,120]
[340068780,1728459060923,-503.17904749,0.00054794,120]
[340068781,1728459060932,-500.0,0.00054794,120]
[340068782,1728459060942,-500.0,0.00054794,120]
[340068783,1728459060951,-502.52775374,0.00054794,120]
[340068784,1728459060961,-503.64722823,0.00054794,120]
[340068785,1728459060970,-500.0,0.00054794,120]
[340068786,1728459060980,-501.69184259,0.00054794,120]
[340068787,1728459060990,-500.0,0.00054794,120]
[340068788,1728459060999,-500.0,0.00054794,120]
[340068789,1728459061009,-500.0,0.00054794,30]
[340068790,1728459061018,-500.0,0.00054794,120]
[340068791,1728459061028,-337.23622229,0.00054794,120]
[340068792,1728459061038,-500.0,0.00054794,120]
[340068793,1728459061047,-521.33253074,0.00054794,120]
[340068794,1728459061056,-500.0,0.00054794,120]
[340068795,1728459061075,-500.0,0.00054794,120]
[340068796,1728459061085,-501.85289668,0.00054794,120]
[340068797,1728459061095,-500.0,0.00054794,120]
[340068798,1728459061104,-500.0,0.00054794,120]
[340068799,1728459061114,-500.0,0.00054794,120]
[340068800,1728459061123,-500.0,0.00054794,120]
[340068801,1728459061133,-460.58027383,0.00054794,120]
[340068802,1728459061143,-500.0,0.00054794,120]
[340068803,1728459061152,-500.0,0.00054794,120]
[340068804,1728459061162,-500.0,0.00054794,120]
[340068805,1728459061172,-500.0,0.00054794,120]
[340068806,1728459061181,-500.0,0.00054794,120]
[340068807,1728459061190,-500.0,0.00054794,120]
[340068808,1728459061200,-500.0,0.00054794,120]
[340068809,1728459061210,-500.0,0.00054794,120]
[340068810,1728459061220,-500.0,0.00054794,120]
[340068811,1728459061230,-500.0,0.00054794,120]
[340068812,1728459061239,-1071.26,0.00054794,120]
[340068813,1728459061249,-508.62513538,0.00054794,120]
[340068814,1728459061259,-500.0,0.00054794,120]
[340068815,1728459061268,-500.0,0.00054794,120]
[340068816,1728459061278,-500.0,0.00054794,120]
[340068817,1728459061288,-500.71188077,0.00054794,120]
[340068818,1728459061297,-500.0,0.00054794,120]
[340068819,1728459061306,-500.0,0.00054794,120]
[340068820,1728459061316,-500.0,0.00054794,10]
[340068821,1728459061326,-500.0,0.00054794,120]
[340068822,1728459061336,-500.0,0.00054794,120]
[340068823,1728459061346,-500.0,0.00054794,120]
[340068824,1728459061359,-622.7150575,0.00054794,120]
[340068825,1728459061369,-500.0,0.00054794,120]
[340068826,1728459061378,-500.0,0.00054794,120]
[340068827,1728459061388,-500.0,0.00054794,120]
[340068828,1728459061400,-500.0,0.00054794,120]
[340068829,1728459061412,-500.0,0.00054794,120]
[340068830,1728459061425,-500.0,0.00054794,120]
[340068831,1728459061435,-500.0,0.00054794,120]
[340068832,1728459061445,-500.0,0.00054794,120]
[340068833,1728459061455,-500.0,0.00054794,120]
[340068834,1728459061465,-500.0,0.00054794,120]
[340068835,1728459061474,-500.0,0.00054794,120]
[340068836,1728459061484,-242.89502509,0.00054794,120]
[340068837,1728459061494,-500.0,0.00054794,120]
[340068838,1728459061504,-500.0,0.00054794,120]
[340068839,1728459061514,-500.0,0.00054794,120]
[340068840,1728459061525,-500.0,0.00054794,120]
[340068841,1728459061535,-500.0,0.00054794,120]
[340068842,1728459061545,-500.0,0.00054794,120]
[340068843,1728459061555,-500.0,0.00054794,120]
[340068844,1728459061567,-1191.19,0.00054794,120]
[340068845,1728459061577,-500.0,0.00054794,120]
[340068846,1728459061587,-500.0,0.00054794,120]
[340068847,1728459061597,-500.0,0.00054794,120]
[340068848,1728459061608,-500.0,0.00054794,120]
[340068849,1728459061618,-502.19693333,0.00054794,120]
[340068850,1728459061628,-500.0,0.00054794,120]
[340068851,1728459061637,-500.0,0.00054794,120]
[340068852,1728459061647,-500.0,0.00054794,120]
[340068853,1728459061657,-500.0,0.00054794,120]
[340068854,1728459061667,-500.0,0.00054794,120]
[340068855,1728459061676,-500.0,0.00054794,120]
[340068856,1728459061685,-501.12929452,0.00054794,120]
[340068857,1728459061694,-500.0,0.00054794,120]
[340068858,1728459061704,-500.0,0.00054794,120]
[340068859,1728459061714,-500.0,0.00054794,120]
[340068860,1728459061723,-500.0,0.00054794,120]
[340068861,1728459061733,-500.0,0.00054794,120]
[340068862,1728459061743,-500.0,0.00054794,120]
[340068863,1728459061753,-500.0,0.00054794,120]
[340068864,1728459061763,-500.0,0.00054794,120]
[340068865,1728459061772,-500.0,0.00054794,120]
[340068866,1728459061782,-500.0,0.00054794,120]
[340068867,1728459061791,-500.0,0.00054794,2]
[340068868,1728459061802,-502.17975822,0.00054794,120]
[340068869,1728459061813,-500.0,0.00054794,120]
[340068870,1728459061822,-501.64560207,0.00054794,120]
[340068871,1728459061832,-500.0,0.00054794,120]
[340068872,1728459061842,-500.0,0.00054794,120]
[340068873,1728459061852,-502.06538804,0.00054794,120]
[340068874,1728459061861,-500.0,0.00054794,120]
[340068875,1728459061870,-500.0,0.00054794,120]
[340068876,1728459061880,-500.0,0.00054794,120]
[340068877,1728459061891,-500.0,0.00054794,120]
[340068878,1728459061900,-500.0,0.00054794,120]
[340068879,1728459061911,-751.07,0.00054794,120]
[340068880,1728459061921,-281.39494871,0.00054794,120]
[340068881,1728459061931,-500.0,0.00054794,120]
[340068882,1728459061941,-500.0,0.00054794,120]
[340068883,1728459061951,-500.0,0.00054794,120]
[340068884,1728459061961,-500.0,0.00054794,120]
[340068885,1728459061971,-500.0,0.00054794,120]
[340068886,1728459061981,-500.0,0.00054794,120]
[340068887,1728459061990,-500.0,0.00054794,120]
[340068888,1728459062001,-500.0,0.00054794,120]
[340068889,1728459062010,-523.05,0.00054794,120]
[340068890,1728459062020,-501.67256344,0.00054794,120]
[340068891,1728459062103,-500.0,0.00054794,120]
[340068892,1728459062122,-500.0,0.00054794,120]
[340068893,1728459062132,-500.0,0.00054794,120]
[340068894,1728459062142,-500.0,0.00054794,120]
[340068895,1728459062152,-500.0,0.00054794,120]
[340068896,1728459062161,-500.0,0.00054794,120]
[340068897,1728459062171,-500.0,0.00054794,60]
[340068898,1728459062182,-500.0,0.00054794,120]
[340068899,1728459062192,-627.85,0.00054794,2]
[340068900,1728459062203,-645.24122173,0.00054794,120]
[340068901,1728459062213,-500.0,0.00054794,120]
[340068902,1728459062223,-504.2797132,0.00054794,120]
[340068903,1728459062235,-502.67693557,0.00054794,120]
[340068904,1728459062245,-500.0,0.00054794,120]
[340068905,1728459062255,-682.88,0.00054794,120]
[340068906,1728459062266,-500.0,0.00054794,2]
[340068907,1728459062275,-500.0,0.00054794,120]
[340068908,1728459062285,-500.0,0.00054794,120]
[340068909,1728459062295,-500.0,0.00054794,120]
[340068910,1728459062307,-500.0,0.00054794,10]
[340068911,1728459062317,-500.0,0.00054794,120]
[340068912,1728459062328,-507.76556726,0.00054794,120]
[340068913,1728459062339,-500.0,0.00054794,120]
[340068914,1728459062350,-500.0,0.00054794,120]
[340068915,1728459062361,-500.0,0.00054794,120]
[340068916,1728459062370,-500.0,0.00054794,120]
[340068917,1728459062381,-500.0,0.00054794,120]
[340068918,1728459062391,-500.0,0.00054794,120]
[340068919,1728459062399,-500.0,0.00054794,120]
[340068920,1728459062408,-500.0,0.00054794,120]
[340068921,1728459062418,-500.0,0.00054794,120]
[340068922,1728459062427,-502.16035556,0.00054794,120]
[340068923,1728459062437,-500.0,0.00054794,120]
[340068924,1728459062447,-500.0,0.00054794,120]
[340068925,1728459062457,-500.0,0.00054794,120]
[340068926,1728459062466,-500.0,0.00054794,120]
[340068927,1728459062476,-500.0,0.00054794,120]
[340068928,1728459062485,-500.0,0.00054794,120]
[340068929,1728459062495,-500.0,0.00054794,120]
[340068930,1728459062505,-500.0,0.00054794,120]
[340068931,1728459062515,-500.0,0.00054794,120]
[340068932,1728459062527,-500.0,0.00054794,120]
[340068933,1728459062539,-500.0,0.00054794,120]
[340068934,1728459062551,-500.0,0.00054794,120]
[340068935,1728459062564,-500.0,0.00054794,120]
[340068936,1728459062574,-500.0,0.00054794,120]
[340068937,1728459062583,-500.0,0.00054794,120]
[340068938,1728459062593,-500.0,0.00054794,120]
[340068939,1728459062602,-500.0,0.00054794,120]
[340068940,1728459062611,-500.0,0.00054794,120]
[340068941,1728459062621,-500.0,0.00054794,120]
[340068942,1728459062630,-500.0,0.00054794,120]
[340068943,1728459062640,-553.05957911,0.00054794,120]
[340068944,1728459062652,-500.0,0.00054794,120]
[340068945,1728459062664,-500.0,0.00054794,120]
[340068946,1728459062674,-500.0,0.00054794,120]
[340068947,1728459062684,-500.0,0.00054794,120]
[340068948,1728459062693,-500.0,0.00054794,120]
[340068949,1728459062703,-565.40375709,0.00054794,120]
[340068950,1728459062713,-500.0,0.00054794,120]
[340068951,1728459062725,-501.45196287,0.00054794,90]
[340068952,1728459062738,-506.83442984,0.00054794,120]
[340068953,1728459062748,-500.0,0.00054794,120]
[340068954,1728459062759,-500.0,0.00054794,120]
[340068955,1728459062770,-500.0,0.00054794,120]
[340068956,1728459062780,-500.0,0.00054794,120]
[340068957,1728459062789,-503.72612296,0.00054794,120]
[340068958,1728459062799,-500.0,0.00054794,120]
[340068959,1728459062809,-500.0,0.00054794,120]
[340068960,1728459062823,-500.0,0.00054794,120]
[340068961,1728459062833,-500.0,0.00054794,120]
[340068962,1728459062844,-503.65213745,0.00054794,120]
[340068963,1728459062855,-500.0,0.00054794,120]
[340068964,1728459062867,-599.51393694,0.00054794,120]
[340068965,1728459062877,-500.0,0.00054794,120]
[340068966,1728459062887,-523.9878097,0.00054794,120]
[340068967,1728459062897,-500.0,0.00054794,120]
[340068968,1728459062907,-500.0,0.00054794,120]
[340068969,1728459062918,-504.01260441,0.00054794,120]
[340068970,1728459062929,-536.77611353,0.00054794,120]
[340068971,1728459062939,-500.0,0.00054794,120]
[340068972,1728459062949,-464.33358438,0.00054794,120]
[340068973,1728459062960,-506.72186441,0.00054794,120]
[340068974,1728459062976,-500.0,0.00054794,120]
[340068975,1728459062989,-500.0,0.00054794,120]
[340068976,1728459062998,-500.0,0.00054794,120]
[340068977,1728459063008,-500.0,0.00054794,120]
[340068978,1728459063018,-500.0,0.00054794,120]
[340068979,1728459063028,-510.56992104,0.00054794,120]
[340068980,1728459063037,-500.0,0.00054794,120]
[340068981,1728459063047,-522.38916906,0.00054794,120]
[340068982,1728459063057,-500.0,0.00054794,120]
[340068983,1728459063068,-576.1658536,0.00054794,120]
[340068984,1728459063078,-506.10727471,0.00054794,120]
[340068985,1728459063087,-500.0,0.00054794,120]
[340068986,1728459063096,-500.0,0.00054794,120]
[340068987,1728459063105,-517.94549458,0.00054794,120]
[340068988,1728459063114,-505.8827087,0.00054794,120]
[340068989,1728459063124,-500.0,0.00054794,120]
[340068990,1728459063134,-500.0,0.00054794,120]
[340068991,1728459063143,-500.0,0.00054794,120]
[340068992,1728459063153,-500.0,0.00054794,120]
[340068993,1728459063162,-510.70533602,0.00054794,120]
[340068994,1728459063173,-502.94525612,0.00054794,120]
[340068995,1728459063182,-593.20154696,0.00054794,120]
[340068996,1728459063192,-514.453444,0.00054794,120]
[340068997,1728459063202,-262.16519933,0.00054794,120]
[340068998,1728459063212,-500.0,0.00054794,120]
[340068999,1728459063223,-500.0,0.00054794,120]
[340069000,1728459063233,-500.0,0.00054794,120]
[340069001,1728459063243,-503.61176819,0.00054794,120]
[340069002,1728459063253,-500.0,0.00054794,120]
[340069003,1728459063263,-500.0,0.00054794,120]
[340069004,1728459063273,-500.0,0.00054794,120]
[340069005,1728459063282,-500.0,0.00054794,120]
[340069006,1728459063292,-500.0,0.00054794,120]
[340069007,1728459063302,-500.0,0.00054794,120]
[340069008,1728459063311,-500.0,0.00054794,120]
[340069009,1728459063321,-501.50856068,0.00054794,120]
[340069010,1728459063331,-500.0,0.00054794,120]
[340069011,1728459063341,-501.9566998,0.00054794,120]
[340069012,1728459063353,-192.89111105,0.00054794,120]
[340069013,1728459063362,-500.0,0.00054794,120]
[340069014,1728459063371,-500.0,0.00054794,120]
[340069015,1728459063380,-500.0,0.00054794,120]
[340069016,1728459063390,-500.0,0.00054794,120]
[340069017,1728459063400,-500.0,0.00054794,120]